Workbook

Sheet Start
B1: OM DENNE MALEN
B2: Bruk denne malen til å holde oversikt over bryllupsutgifter.
B3: Skriv inn beregnet og faktisk kostnader for ulike kategorier i separate regneark.
B4: Budsjettsammendrag og diagram for bryllup oppdateres automatisk.
B5: Obs!
B6: Flere instruksjoner finnes i kolonne A i hvert regneark. Denne teksten er med hensikt skjult. Hvis du vil fjerne teksten, velger du kolonne A og deretter SLETT. Hvis du vil vise teksten, velger du kolonne A og endrer deretter skriftfarge.
B7: Hvis du vil finne ut mer om tabeller, trykker du på SKIFT og deretter på F10 i en tabell. Velg alternativet TABELL, og velg deretter ALTERNATIV TEKST.

Sheet Bryllupsbudsjett
A1: Opprett et bryllupsbudsjett i dette regnearket. Skriv inn informasjon i tabellene i regnearkene Klær–Fest–Musikk–Fotografering og Dekorasjon–Blomster–Gaver–Reise for å oppdatere sammendrag og diagram i gjeldende regneark. Du finner nyttige instruksjoner om hvordan du bruker dette regnearket, i cellene i denne kolonnen. Bryllupsdatoetiketten finnes i celle C1. | C1: Bryllupsdato:
A2: Skriv inn bryllupsdato i celle C2. Gjenværende dager beregnes automatisk i celle E2. | C2: =TODAY()+365 -> 2019-12-27 | D2: Gjenstående dager: | E2: =C2-TODAY() -> 365
A3: Tittelen på dette regnearket finnes i celle C3. Neste instruksjon finnes i celle A6. | C3: Budsjettsammendrag
A6: Tabell for budsjettsammendrag som starter i celle C6 oppdateres automatisk. Neste instruksjon finnes i celle A19. | C6: KATEGORI | D6: BEREGNET | E6: FAKTISK | F6: OVER/UNDER
C7: Klær | D7: =Klær_totalt_beregnet -> 9,490.00 | E7: =Klær_totalt_faktisk -> 9,770.00 | F7: =Budsjettsammendrag[[#This Row],[BEREGNET]]-Budsjettsammendrag[[#This Row],[FAKTISK]] -> -280.00
C8: Bryllupsfest | D8: =Bryllupsfest_totalt_beregnet -> 1,050.00 | E8: =Bryllupsfest_totalt_faktisk -> 928.00 | F8: =Budsjettsammendrag[[#This Row],[BEREGNET]]-Budsjettsammendrag[[#This Row],[FAKTISK]] -> 122.00
C9: Musikk | D9: =Musikkunderholdning_totalt_beregnet -> 600.00 | E9: =Musikkunderholdning_totalt_faktisk -> 400.00 | F9: =Budsjettsammendrag[[#This Row],[BEREGNET]]-Budsjettsammendrag[[#This Row],[FAKTISK]] -> 200.00
C10: Utskrift | D10: =Brevpapir_for_utskrift_beregnet -> 935.00 | E10: =Brevpapir_for_utskrift_faktisk -> 870.00 | F10: =Budsjettsammendrag[[#This Row],[BEREGNET]]-Budsjettsammendrag[[#This Row],[FAKTISK]] -> 65.00
C11: Fotografering | D11: =Fotografering_totalt_beregnet -> 1,625.00 | E11: =Fotografering_totalt_faktisk -> 1,575.00 | F11: =Budsjettsammendrag[[#This Row],[BEREGNET]]-Budsjettsammendrag[[#This Row],[FAKTISK]] -> 50.00
C12: Dekorasjoner | D12: =Dekorasjoner_totalt_beregnet -> 700.00 | E12: =Dekorasjoner_totalt_faktisk -> 720.00 | F12: =Budsjettsammendrag[[#This Row],[BEREGNET]]-Budsjettsammendrag[[#This Row],[FAKTISK]] -> -20.00
C13: Blomster | D13: =Blomster_totalt_beregnet -> 900.00 | E13: =Blomster_totalt_faktisk -> 850.00 | F13: =Budsjettsammendrag[[#This Row],[BEREGNET]]-Budsjettsammendrag[[#This Row],[FAKTISK]] -> 50.00
C14: Gaver | D14: =Gaver_totalt_beregnet -> 1,345.00 | E14: =Gaver_totalt_faktisk -> 1,075.00 | F14: =Budsjettsammendrag[[#This Row],[BEREGNET]]-Budsjettsammendrag[[#This Row],[FAKTISK]] -> 270.00
C15: Reise | D15: =Reisetransport_totalt_beregnet -> 100.00 | E15: =Reisetransport_totalt_faktisk -> 165.00 | F15: =Budsjettsammendrag[[#This Row],[BEREGNET]]-Budsjettsammendrag[[#This Row],[FAKTISK]] -> -65.00
C16: Annet | D16: =Andre_utgifter_totalt_beregnet -> 885.00 | E16: =Andre_utgifter_totalt_faktisk -> 1,021.00 | F16: =Budsjettsammendrag[[#This Row],[BEREGNET]]-Budsjettsammendrag[[#This Row],[FAKTISK]] -> -136.00
C17: Totale utgifter | D17: =SUBTOTAL(109,Budsjettsammendrag[BEREGNET]) -> 17,630.00 | E17: =SUBTOTAL(109,Budsjettsammendrag[FAKTISK]) -> 17,374.00 | F17: =SUBTOTAL(109,Budsjettsammendrag[OVER/UNDER]) -> 256.00
A19: Sektordiagrammet i celle C19 oppdateres automatisk. | C19: Sektordiagram som viser kostnadsprosenten for hver kategori finnes i denne cellen.

Sheet Klær–Fest–Musikk–Fotografering
A1: Skriv inn beregnet og faktisk kostnader for hver kategori i de respektive tabellene i dette regnearket. Kostnader over eller under beregnes automatisk. Klær-etiketten finnes i cellen til høyre. Du finner nyttige instruksjoner om hvordan du bruker dette regnearket, i cellene i denne kolonnen. Trykk på PIL NED for å komme i gang. | B1: Klær
A2: Skriv inn informasjon i tabellen Klær, som starter i cellen til høyre. Neste instruksjon finnes i celle A18. | B2: KATEGORI | C2: BEREGNET | D2: FAKTISK | E2: OVER/UNDER
B3: Forlovelsesring(er) | C3: 1,500.00 | D3: 1,500.00 | E3: =Klær–Fest–Musikk–Fotografering!$C3-Klær–Fest–Musikk–Fotografering!$D3 -> 0.00
B4: Kommende ektefelle 1 ring | C4: 2,000.00 | D4: 2,300.00 | E4: =Klær–Fest–Musikk–Fotografering!$C4-Klær–Fest–Musikk–Fotografering!$D4 -> -300.00
B5: Kommende ektefelle 1 brudekjole/smoking | C5: 3,000.00 | D5: 2,750.00 | E5: =Klær–Fest–Musikk–Fotografering!$C5-Klær–Fest–Musikk–Fotografering!$D5 -> 250.00
B6: Kommende ektefelle 1 slør/hodepynt | C6: 500.00 | D6: 500.00 | E6: =Klær–Fest–Musikk–Fotografering!$C6-Klær–Fest–Musikk–Fotografering!$D6 -> 0.00
B7: Kommende ektefelle 1 sko | C7: 350.00 | D7: 300.00 | E7: =Klær–Fest–Musikk–Fotografering!$C7-Klær–Fest–Musikk–Fotografering!$D7 -> 50.00
B8: Kommende ektefelle 1 smykker | C8: 400.00 | D8: 550.00 | E8: =Klær–Fest–Musikk–Fotografering!$C8-Klær–Fest–Musikk–Fotografering!$D8 -> -150.00
B9: Kommende ektefelle 1 strømper | C9: 20.00 | D9: 20.00 | E9: =Klær–Fest–Musikk–Fotografering!$C9-Klær–Fest–Musikk–Fotografering!$D9 -> 0.00
B10: Kommende ektefelle 2 ring | C10: 300.00 | D10: 250.00 | E10: =Klær–Fest–Musikk–Fotografering!$C10-Klær–Fest–Musikk–Fotografering!$D10 -> 50.00
B11: Kommende ektefelle 2 brudekjole/smoking | C11: 300.00 | D11: 350.00 | E11: =Klær–Fest–Musikk–Fotografering!$C11-Klær–Fest–Musikk–Fotografering!$D11 -> -50.00
B12: Kommende ektefelle 2 slør/hodepynt | C12: 500.00 | D12: 500.00 | E12: =Klær–Fest–Musikk–Fotografering!$C12-Klær–Fest–Musikk–Fotografering!$D12 -> 0.00
B13: Kommende ektefelle 2 sko | C13: 200.00 | D13: 175.00 | E13: =Klær–Fest–Musikk–Fotografering!$C13-Klær–Fest–Musikk–Fotografering!$D13 -> 25.00
B14: Kommende ektefelle 2 smykker | C14: 400.00 | D14: 550.00 | E14: =Klær–Fest–Musikk–Fotografering!$C14-Klær–Fest–Musikk–Fotografering!$D14 -> -150.00
B15: Kommende ektefelle 2 strømper | C15: 20.00 | D15: 25.00 | E15: =Klær–Fest–Musikk–Fotografering!$C15-Klær–Fest–Musikk–Fotografering!$D15 -> -5.00
B16: Klær totalt | C16: =SUBTOTAL(109,Klær[BEREGNET]) -> 9,490.00 | D16: =SUBTOTAL(109,Klær[FAKTISK]) -> 9,770.00 | E16: =SUBTOTAL(109,Klær[OVER/UNDER]) -> -280.00
A18: Bryllupsfest-etiketten finnes i cellen til høyre. | B18: Bryllupsfest*
A19: Skriv inn kostnadene for bryllupsfest, ekskludert kostnader for underholdning og dekorasjoner, i tabellen som starter i cellen til høyre. Neste instruksjon finnes i celle A31. | B19: KATEGORI | C19: BEREGNET | D19: FAKTISK | E19: OVER/UNDER
B20: Leie av lokaler | C20: 200.00 | D20: 150.00 | E20: =Klær–Fest–Musikk–Fotografering!$C20-Klær–Fest–Musikk–Fotografering!$D20 -> 50.00
B21: Bord og stoler | C21: 100.00 | D21: 50.00 | E21: =Klær–Fest–Musikk–Fotografering!$C21-Klær–Fest–Musikk–Fotografering!$D21 -> 50.00
B22: Mat | C22: 0.00 | D22: 0.00 | E22: =Klær–Fest–Musikk–Fotografering!$C22-Klær–Fest–Musikk–Fotografering!$D22 -> 0.00
B23: Drikke | C23: 0.00 | D23: 0.00 | E23: =Klær–Fest–Musikk–Fotografering!$C23-Klær–Fest–Musikk–Fotografering!$D23 -> 0.00
B24: Duker | C24: 0.00 | D24: 0.00 | E24: =Klær–Fest–Musikk–Fotografering!$C24-Klær–Fest–Musikk–Fotografering!$D24 -> 0.00
B25: Kake | C25: 700.00 | D25: 700.00 | E25: =Klær–Fest–Musikk–Fotografering!$C25-Klær–Fest–Musikk–Fotografering!$D25 -> 0.00
B26: Gaver til gjester | C26: 50.00 | D26: 28.00 | E26: =Klær–Fest–Musikk–Fotografering!$C26-Klær–Fest–Musikk–Fotografering!$D26 -> 22.00
B27: Ansatte og tips | C27: 0.00 | D27: 0.00 | E27: =Klær–Fest–Musikk–Fotografering!$C27-Klær–Fest–Musikk–Fotografering!$D27 -> 0.00
B28: Bryllupsfest totalt | C28: =SUBTOTAL(109,Bryllupsfest[BEREGNET]) -> 1,050.00 | D28: =SUBTOTAL(109,Bryllupsfest[FAKTISK]) -> 928.00 | E28: =SUBTOTAL(109,Bryllupsfest[OVER/UNDER]) -> 122.00
B29: * Ekskluderer underholdning og dekorasjoner
A31: Etiketten for musikk eller underholdning finnes i cellen til høyre. | B31: Musikk/underholdning
A32: Skriv inn informasjon i tabellen Musikk, som starter i cellen til høyre. Neste instruksjon finnes i celle A37. | B32: KATEGORI | C32: BEREGNET | D32: FAKTISK | E32: OVER/UNDER
B33: Musikere til vielsen | C33: 400.00 | D33: 400.00 | E33: =Klær–Fest–Musikk–Fotografering!$C33-Klær–Fest–Musikk–Fotografering!$D33 -> 0.00
B34: Band/DJ til bryllupsfesten | C34: 200.00 | D34: 0.00 | E34: =Klær–Fest–Musikk–Fotografering!$C34-Klær–Fest–Musikk–Fotografering!$D34 -> 200.00
B35: Musikk/underholdning totalt | C35: =SUBTOTAL(109,Musikk[BEREGNET]) -> 600.00 | D35: =SUBTOTAL(109,Musikk[FAKTISK]) -> 400.00 | E35: =SUBTOTAL(109,Musikk[OVER/UNDER]) -> 200.00
A37: Trykking/skrivepapir finnes i cellen til høyre. | B37: Trykking/skrivepapir
A38: Skriv inn informasjon i tabellen Trykking, som starter i cellen til høyre. Neste instruksjon finnes i celle A50. | B38: KATEGORI | C38: BEREGNET | D38: FAKTISK | E38: OVER/UNDER
B39: Invitasjoner | C39: 500.00 | D39: 450.00 | E39: =Klær–Fest–Musikk–Fotografering!$C39-Klær–Fest–Musikk–Fotografering!$D39 -> 50.00
B40: Kunngjøringer | C40: 200.00 | D40: 175.00 | E40: =Klær–Fest–Musikk–Fotografering!$C40-Klær–Fest–Musikk–Fotografering!$D40 -> 25.00
B41: Takkekort | C41: 100.00 | D41: 100.00 | E41: =Klær–Fest–Musikk–Fotografering!$C41-Klær–Fest–Musikk–Fotografering!$D41 -> 0.00
B42: Personlig skrivepapir | C42: 0.00 | D42: 0.00 | E42: =Klær–Fest–Musikk–Fotografering!$C42-Klær–Fest–Musikk–Fotografering!$D42 -> 0.00
B43: Gjestebok | C43: 25.00 | D43: 25.00 | E43: =Klær–Fest–Musikk–Fotografering!$C43-Klær–Fest–Musikk–Fotografering!$D43 -> 0.00
B44: Programmer | C44: 75.00 | D44: 80.00 | E44: =Klær–Fest–Musikk–Fotografering!$C44-Klær–Fest–Musikk–Fotografering!$D44 -> -5.00
B45: Servietter | C45: 35.00 | D45: 40.00 | E45: =Klær–Fest–Musikk–Fotografering!$C45-Klær–Fest–Musikk–Fotografering!$D45 -> -5.00
B46: Fyrstikkesker | C46: 0.00 | D46: 0.00 | E46: =Klær–Fest–Musikk–Fotografering!$C46-Klær–Fest–Musikk–Fotografering!$D46 -> 0.00
B47: Kalligrafi | C47: 0.00 | D47: 0.00 | E47: =Klær–Fest–Musikk–Fotografering!$C47-Klær–Fest–Musikk–Fotografering!$D47 -> 0.00
B48: Trykking/skrivepapir totalt | C48: =SUBTOTAL(109,Trykking[BEREGNET]) -> 935.00 | D48: =SUBTOTAL(109,Trykking[FAKTISK]) -> 870.00 | E48: =SUBTOTAL(109,Trykking[OVER/UNDER]) -> 65.00
A50: Fotografering-etiketten finnes i cellen til høyre. | B50: Fotografering
A51: Skriv inn informasjon i tabellen Fotografering, som starter i cellen til høyre. | B51: KATEGORI | C51: BEREGNET | D51: FAKTISK | E51: OVER/UNDER
B52: Offisielle bilder | C52: 1,300.00 | D52: 1,300.00 | E52: =Klær–Fest–Musikk–Fotografering!$C52-Klær–Fest–Musikk–Fotografering!$D52 -> 0.00
B53: Ekstra kopier | C53: 25.00 | D53: 25.00 | E53: =Klær–Fest–Musikk–Fotografering!$C53-Klær–Fest–Musikk–Fotografering!$D53 -> 0.00
B54: Fotoalbum | C54: 100.00 | D54: 100.00 | E54: =Klær–Fest–Musikk–Fotografering!$C54-Klær–Fest–Musikk–Fotografering!$D54 -> 0.00
B55: Video | C55: 200.00 | D55: 150.00 | E55: =Klær–Fest–Musikk–Fotografering!$C55-Klær–Fest–Musikk–Fotografering!$D55 -> 50.00
B56: Fotografering totalt | C56: =SUBTOTAL(109,Fotografering[BEREGNET]) -> 1,625.00 | D56: =SUBTOTAL(109,Fotografering[FAKTISK]) -> 1,575.00 | E56: =SUBTOTAL(109,Fotografering[OVER/UNDER]) -> 50.00

Sheet Dekorasjon–Blomster–Gaver–Reise
A1: Skriv inn beregnet og faktisk kostnader for hver kategori i de respektive tabellene i dette regnearket. Kostnader over eller under beregnes automatisk. Dekorasjoner-etiketten finnes i cellen til høyre. Du finner nyttige instruksjoner om hvordan du bruker dette regnearket, i cellene i denne kolonnen. Trykk på PIL NED for å komme i gang. | B1: Dekorasjoner*
A2: Skriv inn kostnadene for dekorasjoner, ekskludert kostnader for blomster, i tabellen som starter i cellen til høyre. Neste instruksjon finnes i celle A11. | B2: KATEGORI | C2: BEREGNET | D2: FAKTISK | E2: OVER/UNDER
B3: Sløyfer til sitteplasser | C3: 0.00 | D3: 0.00 | E3: =Dekorasjon–Blomster–Gaver–Reise!$C3-Dekorasjon–Blomster–Gaver–Reise!$D3 -> 0.00
B4: Bordpynt | C4: 300.00 | D4: 320.00 | E4: =Dekorasjon–Blomster–Gaver–Reise!$C4-Dekorasjon–Blomster–Gaver–Reise!$D4 -> -20.00
B5: Lys | C5: 100.00 | D5: 75.00 | E5: =Dekorasjon–Blomster–Gaver–Reise!$C5-Dekorasjon–Blomster–Gaver–Reise!$D5 -> 25.00
B6: Belysning | C6: 100.00 | D6: 75.00 | E6: =Dekorasjon–Blomster–Gaver–Reise!$C6-Dekorasjon–Blomster–Gaver–Reise!$D6 -> 25.00
B7: Ballonger | C7: 200.00 | D7: 250.00 | E7: =Dekorasjon–Blomster–Gaver–Reise!$C7-Dekorasjon–Blomster–Gaver–Reise!$D7 -> -50.00
B8: Dekorasjoner totalt | C8: =SUBTOTAL(109,Dekorasjoner[BEREGNET]) -> 700.00 | D8: =SUBTOTAL(109,Dekorasjoner[FAKTISK]) -> 720.00 | E8: =SUBTOTAL(109,Dekorasjoner[OVER/UNDER]) -> -20.00
B9: * Ekskluderer blomster
A11: Blomster-etiketten finnes i cellen til høyre. | B11: Blomster
A12: Skriv inn informasjon i tabellen Blomster, som starter i cellen til høyre. Neste instruksjon finnes i celle A20. | B12: KATEGORI | C12: BEREGNET | D12: FAKTISK | E12: OVER/UNDER
B13: Buketter | C13: 500.00 | D13: 450.00 | E13: =Dekorasjon–Blomster–Gaver–Reise!$C13-Dekorasjon–Blomster–Gaver–Reise!$D13 -> 50.00
B14: Knapphullsblomster | C14: 0.00 | D14: 0.00 | E14: =Dekorasjon–Blomster–Gaver–Reise!$C14-Dekorasjon–Blomster–Gaver–Reise!$D14 -> 0.00
B15: Brystbuketter | C15: 0.00 | D15: 0.00 | E15: =Dekorasjon–Blomster–Gaver–Reise!$C15-Dekorasjon–Blomster–Gaver–Reise!$D15 -> 0.00
B16: Vielse | C16: 400.00 | D16: 400.00 | E16: =Dekorasjon–Blomster–Gaver–Reise!$C16-Dekorasjon–Blomster–Gaver–Reise!$D16 -> 0.00
B17: Bryllupsfest | C17: 0.00 | D17: 0.00 | E17: =Dekorasjon–Blomster–Gaver–Reise!$C17-Dekorasjon–Blomster–Gaver–Reise!$D17 -> 0.00
B18: Blomster totalt | C18: =SUBTOTAL(109,Blomster[BEREGNET]) -> 900.00 | D18: =SUBTOTAL(109,Blomster[FAKTISK]) -> 850.00 | E18: =SUBTOTAL(109,Blomster[OVER/UNDER]) -> 50.00
A20: Gaver-etiketten finnes i cellen til høyre. | B20: Gaver
A21: Skriv inn informasjon i tabellen Gaver, som starter i cellen til høyre. Neste instruksjon finnes i celle A29. | B21: KATEGORI | C21: BEREGNET | D21: FAKTISK | E21: OVER/UNDER
B22: Deltakere | C22: 1,000.00 | D22: 400.00 | E22: =Dekorasjon–Blomster–Gaver–Reise!$C22-Dekorasjon–Blomster–Gaver–Reise!$D22 -> 600.00
B23: Kommende ektefelle 1 | C23: 150.00 | D23: 200.00 | E23: =Dekorasjon–Blomster–Gaver–Reise!$C23-Dekorasjon–Blomster–Gaver–Reise!$D23 -> -50.00
B24: Kommende ektefelle 2 | C24: 150.00 | D24: 200.00 | E24: =Dekorasjon–Blomster–Gaver–Reise!$C24-Dekorasjon–Blomster–Gaver–Reise!$D24 -> -50.00
B25: Foreldre | C25: 25.00 | D25: 25.00 | E25: =Dekorasjon–Blomster–Gaver–Reise!$C25-Dekorasjon–Blomster–Gaver–Reise!$D25 -> 0.00
B26: Opplesere / andre deltakere | C26: 20.00 | D26: 250.00 | E26: =Dekorasjon–Blomster–Gaver–Reise!$C26-Dekorasjon–Blomster–Gaver–Reise!$D26 -> -230.00
B27: Gaver totalt | C27: =SUBTOTAL(109,Gaver[BEREGNET]) -> 1,345.00 | D27: =SUBTOTAL(109,Gaver[FAKTISK]) -> 1,075.00 | E27: =SUBTOTAL(109,Gaver[OVER/UNDER]) -> 270.00
A29: Etiketten for reise og transport finnes i cellen til høyre. | B29: Reise/transport
A30: Skriv inn informasjon i tabellen Reise, som starter i cellen til høyre. Neste instruksjon finnes i celle A36. | B30: KATEGORI | C30: BEREGNET | D30: FAKTISK | E30: OVER/UNDER
B31: Limousiner/kjøretøy | C31: 100.00 | D31: 125.00 | E31: =Dekorasjon–Blomster–Gaver–Reise!$C31-Dekorasjon–Blomster–Gaver–Reise!$D31 -> -25.00
B32: Parkering | C32: 0.00 | D32: 40.00 | E32: =Dekorasjon–Blomster–Gaver–Reise!$C32-Dekorasjon–Blomster–Gaver–Reise!$D32 -> -40.00
B33: Drosjer | C33: 0.00 | D33: 0.00 | E33: =Dekorasjon–Blomster–Gaver–Reise!$C33-Dekorasjon–Blomster–Gaver–Reise!$D33 -> 0.00
B34: Reise/transport totalt | C34: =SUBTOTAL(109,Reise[BEREGNET]) -> 100.00 | D34: =SUBTOTAL(109,Reise[FAKTISK]) -> 165.00 | E34: =SUBTOTAL(109,Reise[OVER/UNDER]) -> -65.00
A36: Etiketten for andre utgifter finnes i cellen til høyre. | B36: Andre utgifter
A37: Skriv inn informasjon i tabellen Andre utgifter, som starter i cellen til høyre. | B37: KATEGORI | C37: BEREGNET | D37: FAKTISK | E37: OVER/UNDER
B38: Forrettende prest | C38: 0.00 | D38: 0.00 | E38: =Dekorasjon–Blomster–Gaver–Reise!$C38-Dekorasjon–Blomster–Gaver–Reise!$D38 -> 0.00
B39: Avgift for kirke/vielsessted | C39: 40.00 | D39: 55.00 | E39: =Dekorasjon–Blomster–Gaver–Reise!$C39-Dekorasjon–Blomster–Gaver–Reise!$D39 -> -15.00
B40: Bryllupskoordinator | C40: 0.00 | D40: 0.00 | E40: =Dekorasjon–Blomster–Gaver–Reise!$C40-Dekorasjon–Blomster–Gaver–Reise!$D40 -> 0.00
B41: Generalprøve for middag | C41: 450.00 | D41: 450.00 | E41: =Dekorasjon–Blomster–Gaver–Reise!$C41-Dekorasjon–Blomster–Gaver–Reise!$D41 -> 0.00
B42: Forlovelsesfest | C42: 20.00 | D42: 50.00 | E42: =Dekorasjon–Blomster–Gaver–Reise!$C42-Dekorasjon–Blomster–Gaver–Reise!$D42 -> -30.00
B43: Gavefest for bruden | C43: 30.00 | D43: 20.00 | E43: =Dekorasjon–Blomster–Gaver–Reise!$C43-Dekorasjon–Blomster–Gaver–Reise!$D43 -> 10.00
B44: Skjønnhetssalong | C44: 45.00 | D44: 46.00 | E44: =Dekorasjon–Blomster–Gaver–Reise!$C44-Dekorasjon–Blomster–Gaver–Reise!$D44 -> -1.00
B45: Utdrikningslag for brud og brudgom | C45: 0.00 | D45: 0.00 | E45: =Dekorasjon–Blomster–Gaver–Reise!$C45-Dekorasjon–Blomster–Gaver–Reise!$D45 -> 0.00
B46: Brunsj | C46: 300.00 | D46: 400.00 | E46: =Dekorasjon–Blomster–Gaver–Reise!$C46-Dekorasjon–Blomster–Gaver–Reise!$D46 -> -100.00
B47: Hotellrom | C47: 0.00 | D47: 0.00 | E47: =Dekorasjon–Blomster–Gaver–Reise!$C47-Dekorasjon–Blomster–Gaver–Reise!$D47 -> 0.00
B48: Andre utgifter totalt | C48: =SUBTOTAL(109,AndreUtgifter[BEREGNET]) -> 885.00 | D48: =SUBTOTAL(109,AndreUtgifter[FAKTISK]) -> 1,021.00 | E48: =SUBTOTAL(109,AndreUtgifter[OVER/UNDER]) -> -136.00
